bitfinex/quotes_BTCUSD_20220201
["timestamp","ask_amount","ask_price","bid_price","bid_amount"]
[1643741836184,1.45,38538.0,38537.0,0.0004]
[1643741836682,1.45,38538.0,38531.0,0.1094]
[1643741836683,0.5,38537.0,38531.0,0.1094]
[1643741836878,1.45,38538.0,38531.0,0.1094]
[1643741836879,0.05,38538.0,38532.0,0.28817119]
[1643741837279,0.2501,38539.0,38531.0,0.1094]
[1643741837478,0.2001,38539.0,38531.0,0.1094]
[1643741837926,0.2501,38539.0,38531.0,0.1094]
[1643741838125,0.26308587,38538.0,38531.0,0.1094]
[1643741838322,0.26308587,38538.0,38531.0,0.1044]
[1643741838522,0.05,38539.0,38531.0,0.1044]
[1643741838523,0.05,38539.0,38533.0,0.00112836]
[1643741838827,0.00136334,38541.0,38533.0,0.00112836]
[1643741839024,0.2007,38538.0,38533.0,0.00112836]
[1643741839424,0.75420677,38541.0,38533.0,0.28270635]
[1643741839626,0.75420677,38541.0,38537.0,0.10315207]
[1643741839627,0.75284343,38541.0,38537.0,0.10315207]
[1643741839828,0.75284343,38539.0,38537.0,0.10315207]
[1643741840025,0.75420679,38541.0,38534.0,0.00112833]
[1643741840424,0.00136336,38541.0,38539.0,0.27842421]
[1643741840825,0.75284343,38547.0,38539.0,0.27842421]
[1643741841026,0.00136342,38542.0,38541.0,0.12306927]
[1643741841684,0.00136342,38542.0,38541.0,0.22306927]
[1643741841886,0.74920685,38551.0,38540.0,0.001]
[1643741842085,0.74920685,38551.0,38538.0,0.001]
[1643741842287,0.74920685,38551.0,38532.0,0.27828534]
[1643741842288,0.20094,38545.0,38532.0,0.27828534]
[1643741842483,0.20094,38545.0,38527.0,0.62286067]
[1643741842484,1.25,38544.0,38528.0,0.23726534]
[1643741842682,0.20004,38540.0,38534.0,0.17694331]
[1643741842882,0.20004,38540.0,38534.0,0.27094707]
[1643741842883,0.0005,38539.0,38534.0,0.27094707]
[1643741843086,0.74920685,38545.0,38544.0,0.7]
[1643741843285,0.74920685,38545.0,38544.0,0.74463754]
[1643741843485,0.74920685,38545.0,38544.0,0.09463754]
[1643741843686,0.74920685,38545.0,38535.0,0.00057081]
[1643741843887,0.74920685,38551.0,38535.0,0.00057081]
[1643741844285,0.5,38542.0,38534.0,0.42479946]
[1643741844486,0.09584346,38543.0,38534.0,0.14751412]
[1643741844685,0.74920685,38551.0,38540.0,0.00057073]
[1643741844887,0.74920685,38551.0,38543.0,0.1]
[1643741845087,0.43974263,38552.0,38540.0,0.00057073]
[1643741845287,0.0476,38551.0,38540.0,0.00057073]
[1643741845555,0.0476,38551.0,38535.0,0.27728534]
[1643741845556,0.22372509,38551.0,38535.0,0.27728534]
[1643741845758,0.00079677,38547.0,38540.0,0.08225355]
[1643741845955,0.00079677,38547.0,38541.0,0.29547124]
[1643741846153,0.00079677,38547.0,38539.0,0.51728869]
[1643741846554,0.00079677,38547.0,38540.0,0.27663875]
[1643741846864,0.74920685,38555.0,38548.0,0.10177488]
[1643741846865,0.00396,38554.0,38548.0,0.10177488]
[1643741847057,0.74920685,38555.0,38548.0,0.10177488]
[1643741847058,0.00318646,38553.0,38552.0,0.15]
[1643741847256,0.19078766,38570.0,38552.0,0.15]
[1643741847257,0.18628766,38570.0,38567.0,0.11769855]
[1643741847458,0.18628766,38570.0,38565.0,0.09680951]
[1643741847661,0.18628766,38570.0,38563.0,0.14157394]
[1643741847858,0.28548766,38570.0,38563.0,0.14157394]
[1643741848055,0.28548766,38570.0,38555.0,0.37386026]
[1643741848056,0.0992,38570.0,38555.0,0.37386026]
[1643741848358,1.4,38571.0,38555.0,0.37386026]
[1643741848359,1.4,38571.0,38558.0,0.08796924]
[1643741848656,0.1,38575.0,38568.0,0.12069515]
[1643741849578,0.1992,38575.0,38574.0,0.10258945]
[1643741849777,0.1,38575.0,38574.0,0.10258945]
[1643741849978,0.1,38575.0,38574.0,0.40329005]
[1643741850175,0.1,38575.0,38574.0,0.98884974]
[1643741850577,0.2,38575.0,38574.0,0.4279601]
[1643741850776,0.62,38575.0,38562.0,0.05]
[1643741850976,0.62,38575.0,38548.0,0.89298694]
[1643741850977,0.1,38563.0,38548.0,0.89298694]
[1643741851177,0.52,38575.0,38548.0,1.64298694]
[1643741851178,0.1,38549.0,38548.0,1.64298694]
[1643741851378,0.41528097,38574.0,38569.0,0.02152799]
[1643741851578,0.349705,38573.0,38569.0,0.02152799]
[1643741851780,0.52,38575.0,38569.0,0.02152799]
[1643741852181,0.52,38575.0,38572.0,0.13653409]
[1643741852380,0.1,38575.0,38573.0,0.349705]
[1643741852578,0.1,38575.0,38572.0,0.13653409]
[1643741852779,0.1,38575.0,38569.0,0.02152799]
[1643741853029,0.10136777,38575.0,38572.0,0.08846671]
[1643741853829,0.10136777,38575.0,38573.0,0.349705]
[1643741854029,0.1,38575.0,38563.0,0.0976]
[1643741854228,0.10136777,38575.0,38563.0,0.1362039]
[1643741854427,0.10136777,38575.0,38568.0,0.23494862]
[1643741854629,0.10136777,38575.0,38563.0,0.0976]
[1643741854832,0.10136777,38575.0,38570.0,0.10109587]
[1643741855229,0.1,38575.0,38570.0,0.10109587]
[1643741855630,0.00136778,38574.0,38571.0,0.349705]
[1643741856131,0.00136778,38574.0,38570.0,0.10109587]
[1643741856332,0.28517434,38574.0,38560.0,0.04058813]
[1643741856531,0.38380656,38574.0,38553.0,0.04750531]
[1643741856779,0.38380656,38574.0,38551.0,0.0508953]
[1643741856780,0.05,38563.0,38551.0,0.0508953]
[1643741856978,2.58283215,38563.0,38551.0,0.0508953]
[1643741857179,0.28380656,38562.0,38551.0,0.0008953]
[1643741857380,0.28380656,38562.0,38552.0,0.18206807]
[1643741857579,0.349705,38561.0,38552.0,0.18206807]
[1643741857780,2.53283215,38563.0,38552.0,0.18206807]
[1643741857781,0.349705,38560.0,38552.0,0.18206807]
[1643741857978,0.00124034,38559.0,38552.0,0.18206807]
[1643741858377,0.00124034,38559.0,38556.0,0.10239176]
[1643741858778,0.08556143,38559.0,38546.0,0.03706143]
[1643741858984,0.25503249,38558.0,38551.0,0.0008953]
[1643741859179,0.349705,38557.0,38551.0,0.0008953]
[1643741859378,0.0008953,38551.0,38550.0,0.01810471]
[1643741860179,0.0008953,38551.0,38541.0,0.0031]
[1643741861227,0.4008953,38551.0,38546.0,0.02105831]
[1643741861427,0.4008953,38551.0,38541.0,0.172156]
[1643741862029,0.4008953,38551.0,38544.0,0.10308432]
[1643741862230,0.0008953,38551.0,38544.0,0.10308432]
[1643741862533,0.0008953,38551.0,38550.0,0.10700608]
[1643741862729,0.0008953,38551.0,38545.0,0.28994084]
[1643741863129,0.0008953,38551.0,38548.0,0.16657592]
[1643741863429,0.0008953,38551.0,38548.0,0.21657592]
[1643741863628,0.0008953,38551.0,38548.0,0.19205486]
[1643741863827,0.0008953,38551.0,38548.0,0.29858918]
[1643741864173,0.0008953,38551.0,38549.0,0.349705]
[1643741865873,0.22903029,38562.0,38554.0,0.10509345]
[1643741866075,0.24801765,38562.0,38554.0,0.10509345]
[1643741866274,0.24801765,38562.0,38549.0,1.4]
[1643741866875,0.10074538,38561.0,38548.0,0.21657592]
[1643741867276,0.10074538,38561.0,38551.0,0.02148358]
[1643741867475,0.00079561,38556.0,38551.0,0.02148358]
[1643741868133,0.00079561,38556.0,38548.0,0.16657592]
[1643741868336,0.00079561,38556.0,38553.0,0.08833571]
[1643741868536,2.63283215,38563.0,38554.0,0.26435389]
[1643741868735,0.00137036,38556.0,38554.0,0.26435389]
[1643741868936,0.00137036,38556.0,38555.0,1.51601002]
[1643741869138,0.00137036,38556.0,38555.0,1.86571502]
[1643741869337,0.00548008,38566.0,38565.0,0.76357369]
[1643741869539,0.00548008,38566.0,38565.0,0.999705]
[1643741869738,0.34903838,38575.0,38565.0,0.62903931]
[1643741869936,0.34903838,38575.0,38562.0,0.14373808]
[1643741869937,0.1,38575.0,38562.0,0.22893604]
[1643741870136,0.1,38575.0,38556.0,1.44443552]
[1643741870137,0.2803295,38574.0,38556.0,1.44443552]
[1643741870340,0.2803295,38574.0,38556.0,0.04443552]
[1643741870542,0.1,38572.0,38554.0,0.05]
[1643741870737,0.2803295,38571.0,38557.0,0.099249]
[1643741870936,0.1,38566.0,38557.0,0.099249]
[1643741871137,0.08647292,38564.0,38557.0,0.23575778]
[1643741871339,0.2803295,38566.0,38562.0,0.02135275]
[1643741871538,0.1,38567.0,38562.0,0.02135275]
[1643741871971,0.1,38567.0,38557.0,0.23575778]
[1643741872173,0.2803295,38572.0,38557.0,0.23575778]
[1643741872374,0.1,38565.0,38557.0,0.23575778]
[1643741872576,0.00137196,38566.0,38558.0,0.349705]
[1643741872774,0.00137196,38566.0,38563.0,0.09132815]
[1643741872974,0.00137196,38566.0,38558.0,0.01813255]
[1643741873180,0.00137196,38566.0,38559.0,0.349705]
[1643741873376,0.1,38572.0,38558.0,0.01813255]
[1643741873577,0.1,38572.0,38562.0,0.07536965]
[1643741873776,0.24777085,38571.0,38558.0,0.01813255]
[1643741873975,0.25592032,38571.0,38561.0,0.1050045]
[1643741874179,0.1,38572.0,38561.0,0.1050045]
[1643741874380,0.26699585,38574.0,38561.0,0.1050045]
[1643741874577,0.26699585,38574.0,38567.0,0.09635573]
[1643741874978,0.34961254,38575.0,38567.0,0.09635573]
[1643741875178,0.71217911,38574.0,38562.0,0.10413717]
[1643741875434,0.71217911,38574.0,38558.0,0.01813255]
[1643741875829,0.36247411,38574.0,38558.0,0.01813255]
[1643741876026,0.1,38575.0,38565.0,0.09593873]
[1643741876426,0.1,38575.0,38565.0,0.34465141]
[1643741877126,0.00136874,38572.0,38565.0,0.34465141]
[1643741877427,0.00136874,38572.0,38567.0,0.07400702]
[1643741878227,0.1,38575.0,38567.0,0.07400702]
[1643741878431,0.1,38575.0,38571.0,0.08834144]
[1643741878628,1.60323623,38570.0,38554.0,0.31712014]
[1643741878827,1.60323623,38570.0,38559.0,0.22343141]
[1643741879026,1.60323623,38570.0,38559.0,0.26069028]
[1643741879278,1.60323623,38570.0,38567.0,0.02123876]
[1643741879476,0.20323623,38570.0,38560.0,0.09605993]
[1643741879780,0.20323623,38570.0,38567.0,0.24639026]
[1643741880579,0.20323623,38570.0,38568.0,0.349705]
[1643741880781,0.20323623,38570.0,38547.0,0.1]
[1643741880782,0.05,38565.0,38547.0,0.1]
[1643741880987,0.27012102,38564.0,38547.0,0.14534301]
[1643741881178,0.04927096,38564.0,38548.0,0.349705]
[1643741881578,0.28150183,38569.0,38558.0,0.25571191]
[1643741881780,0.0476,38569.0,38558.0,0.25571191]
[1643741881982,0.0476,38569.0,38564.0,0.09335277]
[1643741882280,0.20323623,38570.0,38558.0,0.14236753]
[1643741882682,0.20323623,38570.0,38561.0,0.26515632]
[1643741883132,0.20323623,38570.0,38567.0,0.10068747]
[1643741884333,0.20460491,38570.0,38567.0,0.10068747]
[1643741884533,0.20460491,38570.0,38562.0,0.02124728]
[1643741885036,0.602465,38569.0,38562.0,0.02124728]
[1643741885236,0.04927096,38564.0,38563.0,0.02164553]
[1643741885433,2.01787497,38564.0,38563.0,0.02164553]
[1643741885634,2.01787497,38564.0,38558.0,0.27873654]
[1643741885635,1.749705,38564.0,38558.0,0.27873654]
[1643741885833,1.4,38564.0,38558.0,0.27873654]
[1643741886234,0.00136872,38567.0,38558.0,0.27873654]
[1643741886681,0.08806721,38568.0,38558.0,0.27873654]
[1643741886883,0.0012173,38564.0,38558.0,0.09979578]
[1643741887281,0.08806721,38568.0,38558.0,0.09979578]
[1643741887282,0.08428451,38568.0,38558.0,0.09979578]
[1643741887682,0.20810468,38570.0,38558.0,0.09979578]
[1643741887882,0.20323623,38570.0,38558.0,0.09979578]
[1643741888284,0.30250719,38570.0,38558.0,0.09979578]
[1643741888483,0.20323623,38570.0,38558.0,0.28116311]
[1643741888883,0.25430416,38569.0,38558.0,0.28116311]
[1643741889583,0.25430416,38569.0,38562.0,0.25549425]
[1643741889787,0.30250719,38570.0,38562.0,0.25549425]
[1643741889788,0.30250719,38570.0,38564.0,0.0932842]
[1643741890437,0.00079177,38569.0,38564.0,0.22946979]
[1643741890631,0.00079177,38569.0,38564.0,0.0932842]
[1643741890832,0.349705,38568.0,38560.0,0.01802247]
[1643741891032,0.24942001,38567.0,38550.0,0.13326394]
[1643741891334,0.32109077,38569.0,38551.0,0.399705]
[1643741891532,0.37036173,38569.0,38556.0,0.00116355]
[1643741891833,0.00137024,38566.0,38556.0,0.00116355]
[1643741892035,0.09927096,38557.0,38556.0,0.00116355]
[1643741892235,1.749705,38557.0,38556.0,0.00116355]
[1643741892631,1.749705,38557.0,38541.0,0.38042012]
[1643741892832,0.33573532,38556.0,38555.0,0.0011636]
[1643741893031,1.749705,38556.0,38555.0,0.0011636]
[1643741893233,1.749705,38556.0,38555.0,0.01977594]
[1643741893434,0.349705,38556.0,38555.0,0.01977594]
[1643741893634,0.0476,38558.0,38555.0,0.01977594]
[1643741893839,0.0476,38558.0,38555.0,0.01861234]
[1643741894035,0.04927096,38556.0,38554.0,0.00116363]
[1643741894277,1.19739055,38555.0,38554.0,0.00116363]
[1643741894473,1.09811959,38555.0,38554.0,0.00116363]
[1643741894674,0.09927096,38555.0,38554.0,0.00116363]
[1643741894973,0.09927096,38555.0,38549.0,0.10332714]
[1643741895172,0.29041368,38560.0,38553.0,0.14123982]
[1643741896175,0.0476,38562.0,38555.0,0.11990847]
[1643741896378,0.2840705,38566.0,38560.0,0.09140303]
[1643741896379,0.0013702,38566.0,38560.0,0.09140303]
[1643741896775,0.0013702,38566.0,38561.0,0.09316394]
[1643741897384,0.20323623,38570.0,38561.0,0.09316394]
[1643741897580,0.20323623,38570.0,38566.0,0.14774839]
[1643741897779,0.20323623,38570.0,38561.0,0.09316394]
[1643741898231,0.20323623,38570.0,38561.0,0.19316394]
[1643741898937,0.00137033,38567.0,38562.0,0.39516479]
[1643741899133,0.00137033,38567.0,38563.0,0.30494593]
[1643741899332,0.00137033,38567.0,38564.0,0.349705]
[1643741899531,0.00137033,38567.0,38563.0,0.30246535]
[1643741899734,0.20323623,38570.0,38564.0,0.349705]
[1643741899932,0.00137034,38567.0,38562.0,0.39516479]
[1643741900132,0.00137034,38567.0,38563.0,0.349705]
[1643741900333,0.00137034,38567.0,38566.0,0.0813798]
[1643741900535,0.00137034,38567.0,38562.0,0.39516479]
[1643741900733,0.00137034,38567.0,38563.0,0.349705]
[1643741900932,0.25323623,38570.0,38564.0,0.0884535]
[1643741901131,0.00137034,38567.0,38564.0,0.0884535]
[1643741901438,0.00137034,38567.0,38566.0,0.08111285]
[1643741902074,0.00137034,38567.0,38566.0,0.43081785]
[1643741902277,0.20323623,38570.0,38566.0,0.43081785]
[1643741902477,0.00137032,38568.0,38566.0,0.349705]
[1643741902678,0.00137032,38568.0,38564.0,0.0884535]
[1643741902979,0.09927096,38567.0,38564.0,0.0884535]
[1643741903178,0.09927096,38567.0,38562.0,0.02170681]
[1643741903582,0.07773707,38567.0,38556.0,0.00116355]
[1643741903780,0.04927096,38563.0,38556.0,0.00116355]
[1643741903990,0.04927096,38563.0,38533.0,0.93700411]
[1643741903991,0.76,38557.0,38533.0,0.93700411]
[1643741904181,0.76,38557.0,38533.0,0.43700411]
[1643741904182,0.04427096,38538.0,38533.0,0.43700411]
[1643741904381,0.68987096,38534.0,38530.0,0.0383]
[1643741904580,1.64695503,38530.0,38529.0,0.0967]
[1643741904781,1.64695503,38530.0,38527.0,0.62396067]
[1643741904782,2.3011678,38530.0,38527.0,0.62396067]
[1643741904980,0.09427096,38528.0,38527.0,0.32385067]
[1643741905183,1.86,38527.0,38522.0,0.00144383]
[1643741905435,0.55,38523.0,38521.0,0.014]
[1643741905634,0.55,38523.0,38515.0,0.0031]
[1643741905635,0.05,38517.0,38516.0,0.0011]
[1643741905834,1.5,38516.0,38513.0,0.00206]
[1643741906039,1.5,38516.0,38510.0,1.62e-06]
[1643741906040,1.4,38513.0,38510.0,1.62e-06]
[1643741906339,1.4,38513.0,38509.0,0.01294066]
[1643741906340,0.63846517,38511.0,38509.0,0.01294066]
[1643741906545,0.63846517,38511.0,38495.0,9.694e-05]
[1643741906546,2.68413453,38510.0,38504.0,9.6e-06]
[1643741906738,0.05,38505.0,38504.0,9.6e-06]
[1643741906936,1.176325,38505.0,38501.0,9.6e-06]
[1643741907140,1.176325,38505.0,38494.0,0.76084497]
[1643741907141,0.048,38503.0,38500.0,0.5460014]
[1643741907339,0.349705,38502.0,38500.0,0.0732014]
[1643741907537,0.03712517,38504.0,38500.0,0.0732014]
[1643741907736,0.129911,38515.0,38500.0,0.0732014]
[1643741907737,0.048,38501.0,38500.0,0.0732014]
[1643741908537,0.0476,38508.0,38500.0,0.0732014]
[1643741908737,0.048,38505.0,38500.0,0.0732014]
[1643741908935,0.78646436,38511.0,38500.0,0.0732014]
[1643741908936,0.397305,38504.0,38503.0,0.26441591]
[1643741909383,0.0476,38504.0,38503.0,0.42537669]
[1643741909582,0.03712517,38507.0,38503.0,0.42537669]
[1643741910081,0.5,38511.0,38505.0,0.085112]
[1643741910082,0.048,38509.0,38505.0,0.085112]
[1643741910281,0.048,38509.0,38506.0,0.12492296]
[1643741910480,0.08512517,38513.0,38505.0,0.085112]
[1643741910680,0.08512517,38513.0,38510.0,0.16775742]
[1643741910886,0.129882,38527.0,38510.0,0.16775742]
[1643741910887,0.08512517,38512.0,38510.0,0.16775742]
[1643741911087,0.112541,38520.0,38510.0,0.45997965]
[1643741911290,0.048,38515.0,38510.0,0.45997965]
[1643741911483,0.048,38516.0,38510.0,0.45997965]
[1643741911688,0.2119083,38522.0,38511.0,0.39478941]
[1643741911689,0.08512517,38519.0,38511.0,0.39478941]
[1643741912083,0.08512517,38519.0,38511.0,0.3959252]
[1643741912283,0.08512517,38519.0,38511.0,0.307881]
[1643741912483,0.08512517,38519.0,38511.0,0.00113579]
[1643741912683,0.08512517,38519.0,38511.0,0.30742867]
[1643741912936,0.08512517,38522.0,38511.0,0.30632453]
[1643741913138,0.5,38523.0,38511.0,0.30518874]
[1643741913339,0.064924,38530.0,38511.0,0.30518874]
[1643741913340,0.064924,38530.0,38514.0,0.10317971]
[1643741913640,0.08648907,38534.0,38519.0,0.26050695]
[1643741913841,0.08648907,38534.0,38520.0,0.17032142]
[1643741914240,0.00414,38537.0,38515.0,0.2837776]
[1643741914241,0.08512517,38528.0,38515.0,0.2837776]
[1643741914439,0.08512517,38528.0,38511.0,0.0984873]
[1643741914440,0.0476,38532.0,38525.0,0.00113538]
[1643741914640,0.37144083,38535.0,38525.0,3.538e-05]
[1643741914641,0.08512517,38526.0,38525.0,3.538e-05]
[1643741914840,0.08512517,38526.0,38519.0,0.0045422]
[1643741914841,0.08512517,38520.0,38519.0,0.0045422]
[1643741915045,1.32983017,38520.0,38519.0,0.0045422]
[1643741915442,1.50496687,38520.0,38511.0,0.05]
[1643741915641,0.5248417,38520.0,38514.0,0.11415198]
[1643741915842,0.349705,38519.0,38514.0,0.11415198]
[1643741916042,0.08012517,38519.0,38514.0,0.11415198]
[1643741916245,0.00295146,38522.0,38520.0,0.09792598]
[1643741916444,0.2335156,38525.0,38520.0,0.09792598]
[1643741916445,0.17308816,38525.0,38521.0,0.4]
[1643741916691,0.59239331,38528.0,38520.0,0.33174459]
[1643741917077,0.59239331,38528.0,38522.0,0.09277772]
[1643741917278,0.6054937,38527.0,38514.0,0.1]
[1643741917480,0.6054937,38527.0,38495.0,0.38952005]
[1643741917481,0.18239598,38526.0,38500.0,0.10736501]
[1643741917678,0.08012517,38519.0,38500.0,0.0732014]
[1643741917879,0.31814834,38525.0,38505.0,0.064929]
[1643741918077,0.31814834,38525.0,38517.0,0.14288698]
[1643741918078,0.08012517,38520.0,38517.0,0.14288698]
[1643741918280,0.2462553,38525.0,38509.0,0.06492888]
[1643741918479,0.03212517,38522.0,38508.0,0.13097917]
[1643741918678,0.28906839,38522.0,38508.0,0.13097917]
[1643741918878,0.28024819,38522.0,38508.0,0.13097917]
[1643741919079,0.03212517,38522.0,38508.0,0.12984895]
[1643741919277,0.03212517,38522.0,38514.0,0.07432581]
[1643741919481,0.03212517,38522.0,38517.0,0.12552821]
[1643741919680,0.03212517,38522.0,38514.0,0.07432581]
[1643741919979,0.03212517,38522.0,38518.0,0.13975274]
[1643741920182,0.048,38523.0,38518.0,0.13975274]
[1643741920426,0.048,38523.0,38514.0,0.07432581]
[1643741920626,0.048,38523.0,38518.0,0.00112991]
[1643741920827,0.349705,38522.0,38518.0,0.00112991]
[1643741921025,0.03212517,38521.0,38518.0,0.00112991]
[1643741921227,0.24849111,38528.0,38518.0,0.00112991]
[1643741921428,0.048,38524.0,38518.0,0.00112991]
[1643741921625,0.048,38524.0,38516.0,0.27476874]
[1643741921828,0.048,38524.0,38521.0,0.00112982]
[1643741922029,0.08012517,38522.0,38521.0,0.00112982]
[1643741922228,0.08012517,38522.0,38521.0,9.82e-06]
[1643741922229,1.99123844,38522.0,38521.0,9.82e-06]
[1643741922432,3.40183844,38522.0,38521.0,9.82e-06]
[1643741922831,0.03862349,38520.0,38516.0,0.01804995]
[1643741923026,0.6810826,38519.0,38516.0,0.01804995]
[1643741923228,0.08012517,38517.0,38516.0,0.03959541]
[1643741923430,0.97743017,38517.0,38516.0,0.03959541]
[1643741923626,0.97743017,38517.0,38511.0,0.28475243]
[1643741923828,0.12772517,38517.0,38511.0,0.28475243]
[1643741924035,0.03212517,38517.0,38511.0,0.28475243]
[1643741924276,0.54112992,38520.0,38512.0,0.15175284]
[1643741924475,0.349705,38519.0,38512.0,0.15175284]
[1643741924681,0.0476,38525.0,38515.0,0.09374246]
[1643741924876,0.349705,38524.0,38515.0,0.09374246]
[1643741925178,0.73920432,38527.0,38521.0,0.11708591]
[1643741925179,0.54112992,38527.0,38521.0,0.11708591]
[1643741925376,0.54112992,38527.0,38522.0,0.28669961]
[1643741925876,0.54112992,38536.0,38523.0,0.10177795]
[1643741926077,0.349705,38535.0,38523.0,0.10177795]
[1643741926276,0.00402,38535.0,38522.0,0.28669961]
[1643741926481,0.00402,38535.0,38515.0,0.0476]
[1643741926482,0.00136148,38531.0,38519.0,0.00112428]
[1643741926976,0.349705,38530.0,38520.0,0.02041401]
[1643741927180,0.22485986,38529.0,38519.0,0.00112428]
[1643741927376,0.22485986,38529.0,38520.0,0.23389184]
[1643741927575,0.22485986,38529.0,38520.0,0.35157238]
[1643741927777,0.00136153,38526.0,38519.0,0.00112428]
[1643741928040,0.00136153,38526.0,38510.0,0.7325]
[1643741928041,1.4,38525.0,38509.0,0.00449824]
[1643741928240,0.31157494,38524.0,38509.0,0.00449824]
[1643741928436,0.238313,38523.0,38509.0,0.00449824]
[1643741928638,0.30550748,38522.0,38509.0,0.00449824]
[1643741928839,0.35310748,38522.0,38512.0,0.25268194]
[1643741929240,0.349705,38521.0,38512.0,0.25268194]
[1643741929439,0.33854675,38520.0,38512.0,0.25268194]
[1643741929639,0.349705,38519.0,38512.0,0.25268194]
[1643741929843,0.0476,38518.0,38516.0,0.08989188]
[1643741930040,1.199705,38517.0,38516.0,0.08989188]
[1643741931042,1.199705,38517.0,38512.0,0.25268194]
[1643741931343,0.24704246,38516.0,38515.0,0.00111879]
[1643741931543,0.59674746,38516.0,38515.0,0.00111879]
[1643741931779,0.349705,38516.0,38515.0,0.00111879]
[1643741931978,0.0476,38522.0,38515.0,0.00111879]
[1643741932181,0.28379554,38521.0,38515.0,0.09456613]
[1643741932381,0.28379554,38521.0,38515.0,0.09344734]
[1643741932578,0.00136014,38523.0,38517.0,0.00111873]
[1643741932779,0.284015,38522.0,38517.0,0.00111873]
[1643741932978,0.284015,38522.0,38517.0,0.22002867]
[1643741933178,0.284015,38522.0,38517.0,0.00111873]
[1643741933382,0.2421463,38521.0,38517.0,0.00111873]
[1643741933680,0.284015,38520.0,38517.0,0.00111871]
[1643741933881,0.24521878,38519.0,38517.0,0.00111871]
[1643741934079,0.284015,38518.0,38517.0,0.00111871]
[1643741934278,0.27920632,38523.0,38517.0,0.00111871]
[1643741934478,0.284015,38522.0,38517.0,0.00111871]
[1643741934679,0.25693335,38521.0,38515.0,0.09344734]
[1643741934882,1.4,38525.0,38517.0,0.00111871]
[1643741934883,0.00136017,38523.0,38517.0,0.00111871]
[1643741935079,0.284015,38522.0,38517.0,0.00111871]
[1643741935549,0.284015,38522.0,38521.0,0.10342873]
[1643741936144,0.27214234,38529.0,38521.0,0.10342873]
[1643741936145,0.284015,38528.0,38521.0,0.10342873]
[1643741936343,0.24641485,38527.0,38521.0,0.10342873]
[1643741936544,0.284015,38526.0,38517.0,0.0005605]
[1643741936846,0.2930347,38525.0,38517.0,0.0005605]
[1643741937042,0.284015,38524.0,38517.0,0.0005605]
[1643741937244,0.74097485,38530.0,38515.0,0.29178909]
[1643741937245,0.67604585,38530.0,38515.0,0.29178909]
[1643741937550,0.00136134,38523.0,38521.0,0.08932655]
[1643741937744,0.00136134,38523.0,38522.0,0.41361496]
[1643741937945,0.00136134,38523.0,38521.0,0.08932655]
[1643741938344,0.34573949,38535.0,38521.0,0.08932655]
[1643741938544,0.00136132,38524.0,38521.0,0.08932655]
[1643741939192,0.16170787,38524.0,38521.0,0.08932655]
[1643741939589,0.16034655,38524.0,38521.0,0.08932655]
[1643741939790,0.16170787,38524.0,38521.0,0.08932655]
[1643741940789,0.16034655,38524.0,38521.0,0.08932655]
[1643741940991,0.16170787,38524.0,38521.0,0.08932655]
[1643741942092,0.16034655,38524.0,38521.0,0.08932655]
[1643741942293,0.16170787,38524.0,38521.0,0.08932655]
[1643741942493,0.24111152,38523.0,38517.0,0.02091864]
[1643741942700,0.25440849,38523.0,38517.0,0.02091864]
[1643741942928,0.16170787,38524.0,38517.0,0.04032741]
[1643741943129,0.29287025,38529.0,38509.0,0.05]
[1643741943130,0.16034655,38523.0,38509.0,0.05]
[1643741943330,0.16170787,38523.0,38517.0,0.00111871]
[1643741943530,0.16170787,38523.0,38518.0,0.11278167]
[1643741944130,0.11170787,38523.0,38518.0,0.11278167]
[1643741944331,0.11034655,38523.0,38518.0,0.11278167]
[1643741944533,0.11170788,38523.0,38518.0,0.11278167]
[1643741944733,0.10670788,38523.0,38518.0,0.11278167]
[1643741945240,0.284015,38522.0,38517.0,0.00111871]
[1643741945535,0.55434284,38522.0,38515.0,0.01838567]
[1643741945732,0.55434284,38522.0,38517.0,0.00111871]
[1643741946432,0.38936155,38522.0,38520.0,0.12250403]
[1643741948074,0.10534655,38522.0,38520.0,0.12250403]
[1643741948876,1.4,38521.0,38518.0,0.11736582]
[1643741949074,1.4,38521.0,38508.0,0.28457536]
[1643741949075,0.1,38519.0,38508.0,0.28457536]
[1643741949274,0.1,38509.0,38508.0,0.28457536]
[1643741949474,0.1,38509.0,38508.0,0.63467636]
[1643741949875,0.20534655,38509.0,38508.0,0.68467636]
[1643741950076,0.20534655,38509.0,38508.0,0.87892083]
[1643741950280,0.20534655,38509.0,38508.0,0.97892083]
[1643741950558,0.20534655,38509.0,38508.0,0.89342348]
[1643741950758,0.20534655,38509.0,38508.0,0.45884812]
[1643741951461,0.20534655,38509.0,38508.0,0.90884812]
[1643741951859,0.20534655,38509.0,38508.0,1.26938337]
[1643741952162,0.20534655,38509.0,38508.0,2.06938337]
[1643741952362,0.25192742,38528.0,38522.0,0.12349226]
[1643741952564,0.25192742,38528.0,38527.0,0.1296959]
[1643741952761,0.7,38527.0,38522.0,0.12349226]
[1643741952960,0.1,38523.0,38522.0,0.12349226]
[1643741953162,0.75,38523.0,38522.0,0.12349226]
[1643741953562,0.65,38523.0,38522.0,0.12349226]
[1643741953760,0.65,38523.0,38509.0,1.46491149]
[1643741953761,0.75,38523.0,38509.0,1.45]
[1643741953961,0.65,38523.0,38521.0,0.00069163]
[1643741954776,0.00135433,38524.0,38522.0,0.08892448]
[1643741955176,0.7,38527.0,38522.0,0.08892448]
[1643741955177,0.7,38527.0,38523.0,0.00069163]
[1643741955376,0.00135432,38525.0,38522.0,0.08892448]
[1643741955879,0.00135432,38525.0,38523.0,0.00069163]
[1643741956277,0.2717991,38527.0,38523.0,0.00069163]
[1643741956477,0.2717991,38527.0,38522.0,0.08892448]
[1643741956877,0.8717991,38527.0,38526.0,0.00069163]
[1643741957076,0.6,38527.0,38526.0,0.00069163]
[1643741957579,1.99635432,38528.0,38526.0,0.00069163]
[1643741958631,1.99635432,38528.0,38527.0,0.63555068]
[1643741958831,1.99635432,38528.0,38526.0,0.00069163]
[1643741960029,1.99635432,38528.0,38527.0,0.23148253]
[1643741960432,1.99635432,38528.0,38526.0,0.00069163]
[1643741964986,1.99347202,38528.0,38526.0,0.00069163]
[1643741968034,1.99347202,38528.0,38527.0,0.53199138]
[1643741968236,1.99347202,38528.0,38527.0,0.08199138]
[1643741968433,1.99347202,38528.0,38526.0,0.00069163]
[1643741970481,1.99347202,38528.0,38523.0,0.33082927]
[1643741970683,1.99347202,38528.0,38524.0,0.350101]
[1643741971090,1.99347202,38528.0,38520.0,0.064897]
[1643741971091,0.00136165,38527.0,38520.0,0.064897]
[1643741971293,0.00136165,38527.0,38514.0,0.00109761]
[1643741971490,0.27316075,38527.0,38521.0,0.02120461]
[1643741971685,0.21515637,38526.0,38521.0,0.02120461]